fUST/lending_fUST_20240717
["ID","MTS","AMOUNT","RATE_DAILY","PERIOD"]
[332465465,1721208642363,-500.0,0.00021917,2]
[332465466,1721208642372,-502.75218176,0.00021917,2]
[332465467,1721208642382,-500.0,0.00021917,2]
[332465468,1721208642391,-503.32363002,0.00021917,2]
[332465469,1721208642400,-500.0,0.00021917,2]
[332465470,1721208642409,-500.0,0.00021917,2]
[332465471,1721208642418,-500.0,0.00021917,2]
[332465472,1721208642428,-500.0,0.00021917,2]
[332465473,1721208642437,-500.0,0.00021917,2]
[332465474,1721208642599,-500.0,0.00021917,2]
[332465475,1721208642608,-500.0,0.00021917,2]
[332465476,1721208642618,-500.0,0.00021917,2]
[332465477,1721208642627,-500.0,0.00021917,2]
[332465478,1721208642636,-500.0,0.00021917,2]
[332465479,1721208642646,-285.58892814,0.00021917,2]
[332465480,1721208642655,-500.0,0.00021917,2]
[332465481,1721208642664,-500.0,0.00021917,2]
[332465482,1721208642673,-581.26482402,0.00021917,2]
[332465483,1721208642682,-500.0,0.00021917,2]
[332465484,1721208642691,-500.0,0.00021917,2]
[332465485,1721208642700,-500.0,0.00021917,2]
[332465486,1721208642710,-542.6573928,0.00021917,2]
[332465487,1721208642719,-500.0,0.00021917,2]
[332465488,1721208642728,-539.85084873,0.00021917,2]
[332465489,1721208642737,-500.0,0.00021917,2]
[332465490,1721208642749,-500.0,0.00021917,2]
[332465491,1721208642758,-500.0,0.00021917,2]
[332465492,1721208642767,-500.0,0.00021917,2]
[332465493,1721208642776,-500.0,0.00021917,2]
[332465494,1721208642786,-500.0,0.00021917,2]
[332465495,1721208642796,-500.0,0.00021917,2]
[332465496,1721208642807,-500.0,0.00021917,2]
[332465497,1721208642819,-500.0,0.00021917,2]
[332465498,1721208642831,-500.0,0.00021917,2]
[332465499,1721208642841,-500.0,0.00021917,2]
[332465500,1721208642852,-500.0,0.00021917,2]
[332465501,1721208642861,-500.0,0.00021917,2]
[332465502,1721208642871,-500.0,0.00021917,2]
[332465503,1721208642883,-500.0,0.00021917,2]
[332465504,1721208642894,-509.46665652,0.00021917,2]
[332465505,1721208642905,-505.01923387,0.00021917,2]
[332465506,1721208642915,-500.0,0.00021917,2]
[332465507,1721208642926,-500.0,0.00021917,2]
[332465508,1721208642941,-500.0,0.00021917,2]
[332465509,1721208642950,-500.0,0.00021917,2]
[332465510,1721208642960,-500.0,0.00021917,2]
[332465511,1721208642970,-525.36162446,0.00021917,2]
[332465512,1721208642979,-500.0,0.00021917,2]
[332465513,1721208642988,-367.2449101,0.00021917,2]
[332465514,1721208642998,-506.00647221,0.00021917,2]
[332465515,1721208643008,-500.0,0.00021917,2]
[332465516,1721208643017,-500.78773657,0.00021917,2]
[332465517,1721208643026,-500.0,0.00021917,2]
[332465518,1721208643036,-500.0,0.00021917,2]
[332465519,1721208643047,-500.0,0.00021917,2]
[332465520,1721208643057,-500.0,0.00021917,2]
[332465521,1721208643067,-500.0,0.00021917,2]
[332465522,1721208643077,-500.0,0.00021917,2]
[332465523,1721208643086,-500.0,0.00021917,2]
[332465524,1721208643095,-500.0,0.00021917,2]
[332465525,1721208643105,-500.0,0.00021917,2]
[332465526,1721208643114,-244.28139275,0.00021917,2]
[332465527,1721208643123,-500.0,0.00021917,2]
[332465528,1721208643132,-500.0,0.00021917,2]
[332465529,1721208643142,-500.0,0.00021917,2]
[332465530,1721208643151,-213.64657446,0.00021917,2]
[332465531,1721208643160,-500.0,0.00021917,2]
[332465532,1721208643170,-500.0,0.00021917,2]
[332465533,1721208643180,-598.94187553,0.00021917,2]
[332465534,1721208643192,-500.0,0.00021917,2]
[332465535,1721208643202,-500.0,0.00021917,2]
[332465536,1721208643211,-508.91191016,0.00021917,2]
[332465537,1721208643220,-502.20514561,0.00021917,2]
[332465538,1721208643230,-500.0,0.00021917,2]
[332465539,1721208643239,-500.0,0.00021917,2]
[332465540,1721208643248,-500.0,0.00021917,2]
[332465541,1721208643257,-500.0,0.00021917,2]
[332465542,1721208643269,-500.0,0.00021917,2]
[332465543,1721208643278,-500.0,0.00021917,2]
[332465544,1721208643287,-500.0,0.00021917,2]
[332465545,1721208643296,-500.0,0.00021917,2]
[332465546,1721208643306,-500.0,0.00021917,2]
[332465547,1721208643315,-500.0,0.00021917,2]
[332465548,1721208643324,-500.0,0.00021917,2]
[332465550,1721208643333,-505.30757377,0.00021917,2]
[332465551,1721208643343,-500.0,0.00021917,2]
[332465552,1721208643352,-501.15783785,0.00021917,2]
[332465553,1721208643362,-500.0,0.00021917,2]
[332465554,1721208643371,-500.0,0.00021917,2]
[332465555,1721208643381,-500.0,0.00021917,2]
[332465556,1721208643390,-500.0,0.00021917,2]
[332465557,1721208643400,-500.0,0.00021917,2]
[332465558,1721208643409,-500.0,0.00021917,2]
[332465559,1721208643418,-503.7788474,0.00021917,2]
[332465560,1721208643428,-500.0,0.00021917,2]
[332465561,1721208643437,-500.0,0.00021917,2]
[332465563,1721208643447,-500.0,0.00021917,2]
[332465564,1721208643456,-500.0,0.00021917,2]
[332465565,1721208643466,-500.0,0.00021917,2]
[332465566,1721208643476,-500.0,0.00021917,2]
[332465568,1721208643486,-500.0,0.00021917,2]
[332465570,1721208643495,-500.0,0.00021917,2]
[332465571,1721208643504,-500.0,0.00021917,2]
[332465572,1721208643513,-501.39794721,0.00021917,2]
[332465573,1721208643523,-500.0,0.00021917,2]
[332465574,1721208643532,-500.0,0.00021917,2]
[332465575,1721208643541,-500.0,0.00021917,2]
[332465576,1721208643551,-500.0,0.00021917,2]
[332465577,1721208643560,-500.0,0.00021917,2]
[332465578,1721208643569,-502.11560166,0.00021917,2]
[332465579,1721208643578,-509.65672483,0.00021917,2]
[332465580,1721208643587,-500.0,0.00021917,2]
[332465581,1721208643596,-138.78289021,0.00021917,2]
[332465586,1721208643848,-361.21710979,0.00021917,2]
[332465587,1721208643858,-500.0,0.00021917,2]
[332465588,1721208643867,-500.0,0.00021917,2]
[332465589,1721208643877,-612.87,0.00021917,2]
[332465590,1721208643887,-500.0,0.00021917,2]
[332465591,1721208643897,-500.0,0.00021917,2]
[332465592,1721208643906,-385.26515811,0.00021917,2]
[332465602,1721208646891,-114.73484189,0.00021917,2]
[332465603,1721208646901,-500.0,0.00021917,2]
[332465604,1721208646910,-500.0,0.00021917,2]
[332465605,1721208646919,-500.0,0.00021917,2]
[332465606,1721208646929,-501.70901711,0.00021917,2]
[332465607,1721208646938,-500.0,0.00021917,2]
[332465608,1721208646949,-500.0,0.00021917,2]
[332465609,1721208646960,-2000.0,0.00021917,2]
[332465610,1721208646969,-502.64590725,0.00021917,2]
[332465611,1721208646979,-500.0,0.00021917,2]
[332465612,1721208646989,-616.9448563,0.00021917,2]
[332465613,1721208646998,-500.0,0.00021917,2]
[332465614,1721208647008,-500.0,0.00021917,2]
[332465615,1721208647018,-500.0,0.00021917,2]
[332465616,1721208647027,-500.0,0.00021917,2]
[332465617,1721208647036,-467.16737745,0.00021917,2]
[332465649,1721208994397,217.89319718,0.00014999,2]
[332465661,1721209167190,160.11041109,0.00014999,2]
[332465662,1721209199084,1500.0,0.00014999,2]
[332465663,1721209207687,445.69290022,0.00014999,2]
[332465664,1721209228215,11836.22983912,0.00014794,2]
[332465670,1721209265595,1230.99169539,0.00014999,2]
[332465682,1721209376368,273.37902967,0.00014999,2]
[332465684,1721209417791,693.64257317,0.00014999,2]
[332465692,1721209617822,693.64257317,0.00014999,2]
[332465693,1721209628805,693.64257317,0.00014999,2]
[332465694,1721209657335,-276.86783072,0.00035132,120]
[332465695,1721209657363,-292.6791864,0.00035132,120]
[332465696,1721209657390,-161.68904343,0.00035132,120]
[332465697,1721209657418,-151.97889178,0.00035132,120]
[332465698,1721209657446,-157.14213693,0.00035132,120]
[332465699,1721209657475,-279.13733005,0.00035132,120]
[332465700,1721209657507,-302.83923104,0.00035132,120]
[332465701,1721209657551,-3921.19394607,0.00035132,30]
[332465702,1721209657581,-147004.36327973,0.00035132,30]
[332465703,1721209657609,-12317.87300138,0.00035132,30]
[332465704,1721209657638,-200000.0,0.00035132,60]
[332465705,1721209657666,-511.89534727,0.00035132,30]
[332465706,1721209657692,-5323.66227867,0.00035132,30]
[332465707,1721209657719,-169.3254853,0.00035132,120]
[332465708,1721209657747,-422.79175245,0.00035132,60]
[332465709,1721209657776,-405.90499024,0.00035132,120]
[332465710,1721209657802,-230.5066557,0.00035132,30]
[332465711,1721209657830,-1134.83899679,0.00035132,120]
[332465712,1721209657857,-798159.65227057,0.00035132,120]
[332465713,1721209657884,-879.8735628,0.00035132,120]
[332465714,1721209657910,-285.92225164,0.00035132,120]
[332465715,1721209657937,-75215.4949029,0.00035132,30]
[332465716,1721209657963,-15568.73,0.00035132,30]
[332465717,1721209657989,-200.0,0.00035132,30]
[332465718,1721209658015,-1082.257522,0.00035132,120]
[332465719,1721209658042,-1431.17809191,0.00035132,120]
[332465720,1721209658068,-6454.85,0.00035132,120]
[332465721,1721209658093,-1261.99686184,0.00035132,120]
[332465722,1721209658122,-6000.0,0.00035132,30]
[332465723,1721209658150,-18897.35,0.00035132,30]
[332465724,1721209658177,-288.71331256,0.00035132,120]
[332465725,1721209658203,-879.54001452,0.00035132,120]
[332465726,1721209658229,-409.0,0.00035132,30]
[332465727,1721209658255,-1448.19810386,0.00035132,120]
[332465728,1721209658280,-150.71272676,0.00035132,30]
[332465729,1721209658305,-10544.0414242,0.00035132,120]
[332465730,1721209658331,-490.23022101,0.00035132,120]
[332465731,1721209658358,-1000.0,0.00035132,120]
[332465732,1721209658383,-893.4,0.00035132,120]
[332465733,1721209658409,-627.0,0.00035132,30]
[332465734,1721209658436,-418.57891814,0.00035132,30]
[332465735,1721209658460,-627.0,0.00035132,30]
[332465736,1721209658487,-1282.90590674,0.00035132,120]
[332465737,1721209658517,-1295.00521355,0.00035132,31]
[332465738,1721209658542,-788.1337405,0.00035132,120]
[332465739,1721209658568,-7480.45339546,0.00035132,30]
[332465740,1721209658593,-19120.75389562,0.00035132,120]
[332465741,1721209658619,-1187.81201286,0.00035132,35]
[332465752,1721209779361,500.0,0.000225,30]
[332465753,1721209784799,693.64257317,0.00014999,2]
[332465908,1721209839640,-1025.64981436,0.000188,2]
[332465921,1721209839692,-438.83793705,0.000188,2]
[332465924,1721209839704,-726.88,0.000188,2]
[332465974,1721209840153,-2808.63224859,0.000188,2]
[332465976,1721209840163,-603.25390804,0.000189,2]
[332465978,1721209840172,-155.88127206,0.00019165,2]
[332465980,1721209840183,-2964.0796628,0.00020179,2]
[332465982,1721209840192,-172.337966,0.00020385,2]
[332465984,1721209840202,-163.677499,0.00020615,2]
[332465985,1721209840212,-172.337966,0.00020916,2]
[332465987,1721209840221,-154.2,0.00021056,2]
[332465989,1721209840231,-300.0,0.00021095,2]
[332465991,1721209840240,-300.0,0.00021095,2]
[332465992,1721209840249,-225.7023224,0.00021096,2]
[332465994,1721209840258,-549.776637,0.00021096,2]
[332465996,1721209840267,-172.337966,0.00021448,2]
[332465998,1721209840277,-154.2,0.0002146,2]
[332466000,1721209840286,-3000.0,0.000218,2]
[332466002,1721209840296,-4618.778524,0.0002181,2]
[332466003,1721209840305,-453.50149358,0.00021817,2]
[332466005,1721209840315,-3397.50002448,0.00021817,2]
[332466006,1721209840324,-154.2,0.00021864,2]
[332466008,1721209840333,-572.84099082,0.00021907,3]
[332466010,1721209840342,-1067.07630449,0.00021917,2]
[332466011,1721209840351,-500.0,0.00021917,2]
[332466012,1721209840361,-500.0,0.00021917,2]
[332466014,1721209840370,-500.0,0.00021917,2]
[332466016,1721209840379,-500.0,0.00021917,2]
[332466018,1721209840388,-500.0,0.00021917,2]
[332466020,1721209840397,-500.0,0.00021917,2]
[332466022,1721209840406,-500.0,0.00021917,2]
[332466024,1721209840415,-500.0,0.00021917,2]
[332466026,1721209840425,-500.0,0.00021917,2]
[332466028,1721209840435,-500.0,0.00021917,2]
[332466030,1721209840445,-512.85033136,0.00021917,2]
[332466032,1721209840454,-500.0,0.00021917,2]
[332466034,1721209840463,-500.0,0.00021917,2]
[332466036,1721209840472,-501.96576769,0.00021917,2]
[332466038,1721209840482,-500.0,0.00021917,2]
[332466040,1721209840491,-500.0,0.00021917,2]
[332466042,1721209840502,-500.0,0.00021917,2]
[332466044,1721209840513,-500.0,0.00021917,2]
[332466046,1721209840522,-500.0,0.00021917,2]
[332466048,1721209840533,-500.0,0.00021917,2]
[332466050,1721209840542,-500.0,0.00021917,2]
[332466052,1721209840556,-2916.66,0.00021917,2]
[332466054,1721209840565,-603.99930995,0.00021917,2]
[332466055,1721209840575,-176.24997834,0.00021917,2]
[332466056,1721209840586,-500.0,0.00021917,2]
[332466057,1721209840598,-230.52741111,0.00021917,2]
[332466058,1721209840608,-500.0,0.00021917,2]
[332466059,1721209840619,-500.0,0.00021917,2]
[332466060,1721209840631,-500.0,0.00021917,2]
[332466061,1721209840640,-500.0,0.00021917,2]
[332466062,1721209840650,-500.0,0.00021917,2]
[332466063,1721209840659,-500.0,0.00021917,2]
[332466064,1721209840668,-500.0,0.00021917,2]
[332466065,1721209840678,-500.0,0.00021917,2]
[332466066,1721209840689,-500.0,0.00021917,2]
[332466067,1721209840698,-500.0,0.00021917,2]
[332466068,1721209840707,-500.0,0.00021917,2]
[332466069,1721209840719,-500.0,0.00021917,2]
[332466070,1721209840728,-500.0,0.00021917,2]
[332466071,1721209840738,-504.54576064,0.00021917,2]
[332466072,1721209840748,-500.0,0.00021917,2]
[332466073,1721209840759,-500.0,0.00021917,2]
[332466074,1721209840768,-500.0,0.00021917,2]
[332466075,1721209840777,-500.0,0.00021917,2]
[332466076,1721209840976,-500.0,0.00021917,2]
[332466077,1721209840985,-500.0,0.00021917,2]
[332466078,1721209840994,-500.0,0.00021917,2]
[332466079,1721209841004,-500.0,0.00021917,2]
[332466080,1721209841014,-500.0,0.00021917,2]
[332466081,1721209841024,-500.0,0.00021917,2]
[332466082,1721209841033,-500.0,0.00021917,2]
[332466083,1721209841042,-6553.14,0.00021917,2]
[332466084,1721209841053,-17673.07389135,0.00021917,2]
[332466100,1721209843182,-5700.92529183,0.00021917,2]
[332466101,1721209843261,-254.33449048,0.00021917,2]
[332466102,1721209843273,-17944.30632634,0.00021917,2]
[332466103,1721209843282,-500.0,0.00021917,2]
[332466105,1721209843291,-500.0,0.00021917,2]
[332466106,1721209843300,-156.05816705,0.00021917,2]
[332466109,1721209843309,-500.0,0.00021917,2]
[332466110,1721209843319,-500.0,0.00021917,2]
[332466111,1721209843328,-500.0,0.00021917,2]
[332466112,1721209843337,-500.0,0.00021917,2]
[332466113,1721209843347,-500.0,0.00021917,2]
[332466114,1721209843357,-500.0,0.00021917,2]
[332466115,1721209843366,-500.0,0.00021917,2]
[332466116,1721209843376,-500.0,0.00021917,2]
[332466117,1721209843385,-500.0,0.00021917,2]
[332466118,1721209843395,-500.0,0.00021917,2]
[332466119,1721209843404,-500.0,0.00021917,2]
[332466120,1721209843413,-500.0,0.00021917,2]
[332466121,1721209843422,-500.0,0.00021917,2]
[332466122,1721209843431,-228.26232805,0.00021917,2]
[332466123,1721209843440,-500.0,0.00021917,2]
[332466124,1721209843449,-150.04519737,0.00021917,2]
[332466125,1721209843459,-500.0,0.00021917,2]
[332466126,1721209843468,-500.0,0.00021917,2]
[332466127,1721209843477,-500.0,0.00021917,2]
[332466128,1721209843487,-500.0,0.00021917,2]
[332466129,1721209843496,-500.0,0.00021917,2]
[332466130,1721209843506,-500.0,0.00021917,2]
[332466131,1721209843516,-500.0,0.00021917,2]
[332466132,1721209843525,-500.0,0.00021917,2]
[332466133,1721209843535,-500.0,0.00021917,2]
[332466134,1721209843544,-500.0,0.00021917,2]
[332466135,1721209843558,-500.0,0.00021917,2]
[332466136,1721209843567,-500.0,0.00021917,2]
[332466137,1721209843576,-500.0,0.00021917,2]
[332466138,1721209843585,-501.79571949,0.00021917,2]
[332466139,1721209843595,-500.0,0.00021917,2]
[332466140,1721209843606,-500.0,0.00021917,2]
[332466141,1721209843615,-500.0,0.00021917,2]
[332466142,1721209843625,-500.0,0.00021917,2]
[332466143,1721209843634,-500.0,0.00021917,2]
[332466144,1721209843643,-500.0,0.00021917,2]
[332466145,1721209843653,-500.0,0.00021917,2]
[332466146,1721209843662,-500.0,0.00021917,2]
[332466147,1721209843671,-500.0,0.00021917,2]
[332466148,1721209843680,-500.0,0.00021917,2]
[332466149,1721209843689,-500.51977609,0.00021917,2]
[332466150,1721209843698,-501.51772344,0.00021917,2]
[332466151,1721209843707,-500.0,0.00021917,2]
[332466152,1721209843716,-500.40484674,0.00021917,2]
[332466153,1721209843725,-500.0,0.00021917,2]
[332466154,1721209843734,-500.0,0.00021917,2]
[332466155,1721209843743,-500.0,0.00021917,2]
[332466156,1721209843753,-500.0,0.00021917,2]
[332466157,1721209843763,-455.31551571,0.00021917,2]
[332466158,1721209843772,-471.5951001,0.00021917,2]
[332466159,1721209843781,-500.0,0.00021917,2]
[332466160,1721209843791,-500.0,0.00021917,2]
[332466161,1721209843800,-367.2449101,0.00021917,2]
[332466162,1721209843809,-500.0,0.00021917,2]
[332466163,1721209843818,-500.0,0.00021917,2]
[332466164,1721209843827,-500.0,0.00021917,2]
[332466165,1721209843836,-500.78773657,0.00021917,2]
[332466166,1721209843845,-500.0,0.00021917,2]
[332466167,1721209843855,-134.20923295,0.00021917,2]
[332466168,1721209843868,-365.79076705,0.00021917,2]
[332466169,1721209843877,-500.0,0.00021917,2]
[332466170,1721209843887,-5.62458373,0.00021917,2]
[332466171,1721209843898,-494.37541627,0.00021917,2]
[332466172,1721209843907,-500.0,0.00021917,2]
[332466173,1721209843916,-500.0,0.00021917,2]
[332466174,1721209843925,-500.0,0.00021917,2]
[332466175,1721209843934,-244.28139275,0.00021917,2]
[332466176,1721209843944,-500.0,0.00021917,2]
[332466177,1721209843953,-259.47834909,0.00021917,2]
[332466184,1721209846664,-240.52165091,0.00021917,2]
[332466185,1721209846674,-213.64657446,0.00021917,2]
[332466186,1721209846683,-500.0,0.00021917,2]
[332466187,1721209846692,-505.01923387,0.00021917,2]
[332466188,1721209846701,-500.0,0.00021917,2]
[332466189,1721209846710,-508.91191016,0.00021917,2]
[332466190,1721209846719,-500.0,0.00021917,2]
[332466191,1721209846729,-500.0,0.00021917,2]
[332466192,1721209846738,-500.0,0.00021917,2]
[332466193,1721209846747,-598.94187553,0.00021917,2]
[332466194,1721209846758,-502.20514561,0.00021917,2]
[332466195,1721209846767,-500.0,0.00021917,2]
[332466196,1721209846776,-500.0,0.00021917,2]
[332466197,1721209846786,-500.0,0.00021917,2]
[332466198,1721209846796,-500.0,0.00021917,2]
[332466199,1721209846806,-500.0,0.00021917,2]
[332466200,1721209846815,-500.0,0.00021917,2]
[332466201,1721209846826,-500.0,0.00021917,2]
[332466202,1721209846835,-525.36162446,0.00021917,2]
[332466203,1721209846845,-500.0,0.00021917,2]
[332466204,1721209846855,-500.0,0.00021917,2]
[332466205,1721209846864,-500.0,0.00021917,2]
[332466206,1721209846874,-506.00647221,0.00021917,2]
[332466207,1721209846884,-500.0,0.00021917,2]
[332466208,1721209846894,-500.0,0.00021917,2]
[332466209,1721209846905,-500.0,0.00021917,2]
[332466210,1721209846915,-501.15783785,0.00021917,2]
[332466211,1721209846926,-500.0,0.00021917,2]
[332466212,1721209846938,-505.30757377,0.00021917,2]
[332466213,1721209846948,-500.0,0.00021917,2]
[332466214,1721209846958,-500.0,0.00021917,2]
[332466215,1721209846969,-500.0,0.00021917,2]
[332466216,1721209846978,-500.0,0.00021917,2]
[332466217,1721209846988,-500.0,0.00021917,2]
[332466218,1721209846997,-79.16010117,0.00021917,2]
[332466219,1721209848632,1000001.0,0.00034621,29]
[332466220,1721209852082,1000002.0,0.00034621,29]
[332466221,1721209862149,1000003.0,0.00034621,29]
[332466222,1721209864326,1000004.0,0.00034621,29]
[332466223,1721209867141,1000005.0,0.00034621,29]
[332466224,1721209870485,1000006.0,0.00034621,29]
[332466225,1721209872982,1000007.0,0.00034621,29]
[332466226,1721209875898,1000008.0,0.00034621,29]
[332466227,1721209879025,1000009.0,0.00034621,29]
[332466228,1721209909944,1000010.0,0.00034621,29]
[332466229,1721209912247,1000011.0,0.00034621,29]
[332466230,1721209915396,1000012.0,0.00034621,29]
[332466231,1721209918553,1000013.0,0.00034621,29]
[332466232,1721209922584,1000014.0,0.00034621,29]
[332466233,1721209925403,1000015.0,0.00034621,29]
[332466234,1721209928053,1000016.0,0.00034621,29]
[332466235,1721209933198,1000017.0,0.00034621,29]
[332466236,1721209936878,1000018.0,0.00034621,29]
[332466237,1721209940703,999874.0,0.00034621,29]
[332466242,1721209998952,1000020.0,0.00034621,29]
[332466243,1721210070074,222.53,0.0002289,62]
[332466245,1721210070923,1487.0,0.0002289,62]
[332466246,1721210071086,150.5,0.0002289,62]
[332466247,1721210071393,1487.0,0.0002288,62]
[332466248,1721210071565,150.5,0.0002288,62]
[332466249,1721210071863,1487.0,0.0002287,62]
[332466250,1721210071999,150.5,0.0002287,62]
[332466251,1721210144708,500.0,0.00025,120]
[332466254,1721210190798,150.5,0.00022729,62]
[332466255,1721210191304,150.5,0.00022719,62]
[332466256,1721210191777,150.5,0.00022709,62]
[332466257,1721210191826,2225.0,0.00022729,62]
[332466258,1721210192285,2225.0,0.00022719,62]
[332466259,1721210192759,2225.0,0.00022709,62]
[332466271,1721210312010,1557.0,0.00022729,62]
[332466272,1721210312466,1557.0,0.00022719,62]
[332466273,1721210312948,1557.0,0.00022709,62]
[332466278,1721210378864,-231.0,0.00015995,2]
[332466281,1721210429878,150.5,0.00022455,62]
[332466282,1721210430361,150.5,0.00022445,62]
[332466283,1721210430846,150.5,0.00022435,62]
[332466284,1721210431814,150.5,0.00022455,62]
[332466285,1721210432297,1090.0,0.00022455,62]
[332466286,1721210432345,296.35,0.00022445,62]
[332466287,1721210432769,1090.0,0.00022445,62]
[332466288,1721210433264,1090.0,0.00022435,62]
[332466290,1721210539868,10000.0,0.000225,30]
[332466291,1721210551685,763.0,0.0002242,62]
[332466292,1721210552188,763.0,0.0002241,62]
[332466293,1721210552695,763.0,0.000224,62]
[332466294,1721210566495,10000.0,0.00024,60]
[332466296,1721210670640,150.5,0.00022181,62]
[332466297,1721210671328,150.5,0.00022171,62]
[332466298,1721210671450,270.12,0.00022181,62]
[332466300,1721210671646,534.0,0.00022181,62]
[332466301,1721210671844,150.5,0.00022161,62]
[332466303,1721210672343,534.0,0.00022171,62]
[332466305,1721210672838,534.0,0.00022161,62]
[332466306,1721210674467,392.0,0.00024,60]
[332466310,1721210792124,374.0,0.00022181,62]
[332466311,1721210792587,374.0,0.00022171,62]
[332466312,1721210793064,374.0,0.00022161,62]
[332466321,1721210912160,262.0,0.00022181,62]
[332466322,1721210912631,262.0,0.00022171,62]
[332466323,1721210913150,262.0,0.00022161,62]
[332466338,1721211032239,183.0,0.00022181,62]
[332466339,1721211032721,183.0,0.00022171,62]
[332466370,1721211033115,-212.39397499,0.00015995,2]
[332466372,1721211033125,-271.60692958,0.000199,2]
[332466374,1721211033135,-164.842529,0.00019993,2]
[332466376,1721211033145,-1067.07630449,0.0002,2]
[332466379,1721211033155,-1414.66086613,0.000205,2]
[332466388,1721211033191,183.0,0.00022161,62]
[332466453,1721211038180,-85.33913387,0.000205,2]
[332466454,1721211038191,-2294.537578,0.00021,2]
[332466455,1721211038201,-226.071565,0.00021096,2]
[332466456,1721211038210,-522.287805,0.00021096,2]
[332466457,1721211038220,-153.0,0.00021589,2]
[332466458,1721211038229,-208.0,0.0002167,2]
[332466459,1721211038240,-153.0,0.00021671,2]
[332466460,1721211038249,-153.0,0.00021671,2]
[332466461,1721211038259,-153.0,0.00021671,2]
[332466462,1721211038269,-153.0,0.00021671,2]
[332466463,1721211038278,-153.0,0.00021671,2]
[332466464,1721211038287,-153.0,0.00021671,2]
[332466465,1721211038297,-153.0,0.00021671,2]
[332466466,1721211038307,-153.0,0.00021671,2]
[332466467,1721211038316,-153.0,0.00021671,2]
[332466468,1721211038326,-153.0,0.00021671,2]
[332466469,1721211038335,-156.4544038,0.00021671,2]
[332466470,1721211038345,-150.0,0.000218,2]
[332466471,1721211038355,-362.80119488,0.00021817,2]
[332466472,1721211038364,-688.43527144,0.00021907,3]
[332466473,1721211038374,-420.83989883,0.00021917,2]
[332466475,1721211038384,-500.0,0.00021917,2]
[332466477,1721211038394,-500.0,0.00021917,2]
[332466479,1721211038403,-500.0,0.00021917,2]
[332466481,1721211038414,-500.0,0.00021917,2]
[332466483,1721211038425,-500.0,0.00021917,2]
[332466485,1721211038434,-500.0,0.00021917,2]
[332466487,1721211038444,-500.0,0.00021917,2]
[332466489,1721211038454,-500.0,0.00021917,2]
[332466491,1721211038463,-500.0,0.00021917,2]
[332466493,1721211038473,-500.0,0.00021917,2]
[332466495,1721211038483,-500.0,0.00021917,2]
[332466497,1721211038493,-500.0,0.00021917,2]
[332466499,1721211038502,-500.0,0.00021917,2]
[332466501,1721211038512,-500.0,0.00021917,2]
[332466503,1721211038521,-500.0,0.00021917,2]
[332466505,1721211038531,-501.39794721,0.00021917,2]
[332466507,1721211038540,-500.0,0.00021917,2]
[332466510,1721211038549,-500.0,0.00021917,2]
[332466512,1721211038559,-500.0,0.00021917,2]
[332466514,1721211038568,-500.0,0.00021917,2]
[332466516,1721211038578,-500.0,0.00021917,2]
[332466518,1721211038588,-500.0,0.00021917,2]
[332466520,1721211038598,-502.11560166,0.00021917,2]